bitfinex-derivatives/quotes_SOLF0:USTF0_20250125
["timestamp","ask_amount","ask_price","bid_price","bid_amount"]
[1737805815788,3.9987,250.12,250.1,0.02534669]
[1737805819390,3.9987,250.12,250.1,4.669e-05]
[1737805820492,3.9997,250.05,250.04,3.70241837]
[1737805821194,4.0001,250.04,249.96,4.0011]
[1737805821590,0.02675186,250.03,249.98,0.02534159]
[1737805822596,0.02675186,250.03,250.01,4.0003]
[1737805823096,0.02675186,250.03,249.99,3.70241837]
[1737805823296,0.02675186,250.03,249.98,0.02534159]
[1737805823297,0.02675186,250.03,250.02,3.70241837]
[1737805823699,9.95486705,250.11,250.02,3.70241837]
[1737805823899,3.9997,250.06,250.02,3.70241837]
[1737805824199,4.007,250.51,249.94,1.2985]
[1737805824200,9.95486705,250.14,249.99,3.70241837]
[1737805824399,9.95486705,250.14,250.0,2.94]
[1737805824599,3.9982,250.15,250.01,3.70241837]
[1737805824800,9.95486705,250.18,250.01,3.70241837]
[1737805825000,0.02798683,250.11,250.05,0.02531348]
[1737805825597,0.02798683,250.11,250.09,3.9991]
[1737805826200,0.02798683,250.11,250.06,3.70241837]
[1737805826496,0.02798683,250.11,250.1,3.70241837]
[1737805826897,0.02798683,250.11,250.08,3.70241837]
[1737805827401,0.02798683,250.11,249.96,2.01040008]
[1737805828503,4.02678683,250.11,250.03,4.0]
[1737805828703,0.02798683,250.11,250.01,0.02914937]
[1737805828896,3.999,250.1,250.01,4.02944937]
[1737805830104,15.9588169,250.29,250.07,15.9588169]
[1737805830299,15.9588169,250.33,250.11,15.9588169]
[1737805830901,1.3484,250.35,250.09,2.98]
[1737805830902,1.3484,250.35,250.15,15.9588169]
[1737805831296,0.02980115,250.28,250.22,0.02758053]
[1737805832202,0.02980115,250.28,250.23,3.9968]
[1737805832402,0.02980115,250.28,250.22,0.02758053]
[1737805834001,4.02600115,250.28,250.22,0.02758053]
[1737805835208,3.9963,250.27,250.22,0.02758053]
[1737805837606,3.9964,250.26,250.22,0.02758053]
[1737805838106,3.9967,250.24,250.22,0.02758053]
[1737805839910,0.02980115,250.28,250.22,0.02758053]
[1737805840912,0.02980115,250.28,250.23,3.65893895]
[1737805841110,3.9963,250.27,250.23,3.65893895]
[1737805841309,0.02980115,250.28,250.23,3.65893895]
[1737805841713,0.02980115,250.28,250.24,3.65893895]
[1737805842311,0.02980115,250.28,250.23,3.65893895]
[1737805842810,0.02980115,250.28,250.24,3.65893895]
[1737805843612,0.02980115,250.28,250.23,3.65893895]
[1737805843814,3.9967,250.24,250.23,3.65893895]
[1737805844015,0.02980115,250.28,250.22,0.02758053]
[1737805844513,3.9969,250.23,250.22,0.02758053]
[1737805845904,3.9969,250.23,250.22,3.68651948]
[1737805849310,0.02980115,250.28,250.22,3.68651948]
[1737805849515,0.02980115,250.28,250.23,3.98883394]
[1737805849707,0.02980115,250.28,250.23,7.64777289]
[1737805850107,0.02980115,250.28,250.24,3.65893895]
[1737805850816,0.02980115,250.28,250.25,3.65893895]
[1737805851217,0.02980115,250.28,250.26,3.65893895]
[1737805851821,3.9962,250.27,250.26,3.65893895]
[1737805852021,0.02980115,250.28,250.23,3.98883394]
[1737805852222,3.9967,250.25,250.23,3.98883394]
[1737805852422,3.9967,250.25,250.24,4.0086227]
[1737805852622,0.02980115,250.28,250.24,3.68275092]
[1737805852921,0.02980115,250.28,250.24,7.69137362]
[1737805853123,0.02980115,250.28,250.24,3.68275092]
[1737805853320,3.9963,250.27,250.25,7.69137362]
[1737805853520,3.9963,250.27,250.25,3.68275092]
[1737805853716,3.9963,250.27,250.26,4.0086227]
[1737805853921,3.9963,250.27,250.26,7.69137362]
[1737805854120,3.9963,250.27,250.26,3.68275092]
[1737805854724,3.9963,250.27,250.26,7.69137362]
[1737805854925,3.9963,250.27,250.26,3.68275092]
[1737805855522,3.9963,250.27,250.26,7.69137362]
[1737805855724,3.9963,250.27,250.26,3.68275092]
[1737805856418,3.9963,250.27,250.26,7.69137362]
[1737805856619,3.9963,250.27,250.26,3.68275092]
[1737805857218,3.9963,250.27,250.26,7.69137362]
[1737805857427,3.9963,250.27,250.26,3.68275092]
[1737805858127,3.9963,250.27,250.26,7.69137362]
[1737805858328,0.02980115,250.28,250.26,3.68275092]
[1737805858529,0.02980115,250.28,250.27,4.0086227]
[1737805859032,0.02980115,250.28,250.27,7.69137362]
[1737805859730,9.96639081,250.36,250.27,7.69137362]
[1737805859928,9.96639081,250.36,250.28,4.0086227]
[1737805860127,9.96639081,250.36,250.29,4.0086227]
[1737805860327,9.96639081,250.36,250.28,4.0086227]
[1737805860622,9.96639081,250.36,250.3,3.68275092]
[1737805860822,0.02603229,250.35,250.3,3.68275092]
[1737805861226,3.9951,250.34,250.31,3.68275092]
[1737805861427,0.02603229,250.35,250.31,3.68275092]
[1737805862130,3.9956,250.31,250.3,3.68275092]
[1737805862930,0.02603229,250.35,250.3,3.68275092]
[1737805863431,0.02603229,250.35,250.3,8.98115092]
[1737805863630,4.02103229,250.35,250.3,4.98545092]
[1737805864933,3.9951,250.34,250.3,4.98545092]
[1737805865334,3.9951,250.34,250.3,8.99794769]
[1737805865534,3.9951,250.34,250.31,4.01410894]
[1737805865834,3.9951,250.34,250.32,3.68275092]
[1737805866527,3.9951,250.34,250.33,3.68275092]
[1737805867232,0.02603229,250.35,250.33,3.68275092]
[1737805867430,3.9939,250.42,250.35,3.9948]
[1737805867638,9.96639081,250.44,250.35,4.01414091]
[1737805867936,9.96639081,250.44,250.34,3.68275092]
[1737805868435,9.96639081,250.44,250.35,3.68275092]
[1737805868735,0.02628223,250.42,250.36,0.0277231]
[1737805869034,0.02628223,250.42,250.37,3.68275092]
[1737805869633,3.994,250.41,250.38,3.68275092]
[1737805869834,9.96639081,250.41,250.38,3.68275092]
[1737805870234,3.9946,250.37,250.36,0.0277231]
[1737805870737,3.9946,250.37,250.36,3.72095979]
[1737805873437,3.9946,250.37,250.36,7.74497889]
[1737805874137,0.02628223,250.42,250.36,7.74497889]
[1737805874339,0.02628223,250.42,250.37,4.0240191]
[1737805874537,0.02628223,250.42,250.38,4.0240191]
[1737805874738,0.02628223,250.42,250.39,4.0240191]
[1737805874940,0.02628223,250.42,250.4,7.71725579]
[1737805875141,9.96639081,250.5,250.41,4.0240191]
[1737805875339,9.96639081,250.53,250.42,7.71725579]
[1737805875538,9.96639081,250.53,250.43,4.0240191]
[1737805875738,9.96639081,250.53,250.44,4.0240191]
[1737805875939,9.96639081,250.5,250.45,4.0240191]
[1737805876136,3.9933,250.45,250.44,3.69323669]
[1737805876437,3.9933,250.45,250.44,4.02377164]
[1737805876834,3.9933,250.45,250.44,7.7198811]
[1737805877031,13.95969081,250.45,250.44,3.69610946]
[1737805877538,13.95969081,250.45,250.44,9.46e-06]
[1737805878533,3.9937,250.43,250.42,3.503e-05]
[1737805880841,0.02672144,250.45,250.42,3.503e-05]
[1737805881445,0.02672144,250.45,250.43,4.02269759]
[1737805881849,0.02672144,250.45,250.43,4.01943442]
[1737805882348,9.96639081,250.52,250.43,4.01943442]
[1737805882546,3.9921,250.54,250.46,3.9932]
[1737805882942,11.25929081,250.6,250.46,8.00895427]
[1737805883140,9.96639081,250.56,250.45,4.01575427]
[1737805883643,3.9927,250.5,250.48,0.02548443]
[1737805883847,9.96639081,250.56,250.48,0.02548443]
[1737805884248,3.9926,250.5,250.48,0.02548443]
[1737805888252,9.96639081,250.52,250.48,0.02548443]
[1737805888453,3.9927,250.49,250.48,0.02548443]
[1737805893252,3.9927,250.49,250.48,8.443e-05]
[1737805901659,3.9943,250.39,250.36,1.2721]
[1737805901853,6.36570967,250.42,250.36,1.2721]
[1737805902258,3.9941,250.41,250.37,3.65012998]
[1737805902756,3.9941,250.41,250.38,3.65012998]
[1737805903261,6.39440227,250.42,250.38,3.65012998]
[1737805903761,3.9941,250.4,250.39,3.65012998]
[1737805916168,0.0286926,250.42,250.39,3.65012998]
[1737805916558,9.95317379,250.49,250.39,3.65012998]
[1737805916960,9.95317379,250.49,250.37,2.6145]
[1737805916961,9.95317379,250.49,250.4,3.65012998]
[1737805917159,3.9931,250.47,250.4,3.65012998]
[1737805917568,3.9931,250.47,250.41,0.03065965]
[1737805917767,3.9931,250.47,250.41,3.68078963]
[1737805918268,3.9931,250.47,250.42,3.65012998]
[1737805918770,3.9932,250.46,250.42,3.65012998]
[1737805919068,3.9932,250.46,250.43,3.65012998]
[1737805919671,3.9932,250.46,250.44,3.65012998]
[1737805919871,3.9932,250.46,250.45,3.65012998]
[1737805921064,3.9938,250.42,250.41,0.03065965]
[1737805922773,9.95317379,250.43,250.41,0.03065965]
[1737805923572,13.94627379,250.47,250.41,0.03065965]
[1737805923872,6.36766799,250.46,250.41,0.03065965]
[1737805924070,6.36766799,250.46,250.41,2.68705965]
[1737805924766,6.36766799,250.46,250.41,6.68095965]
[1737805925371,6.36766799,250.46,250.41,2.68705965]
[1737805926175,3.9934,250.45,250.41,2.68705965]
[1737805926377,6.36766799,250.46,250.41,2.68705965]
[1737805926672,3.9937,250.43,250.41,2.68705965]
[1737805927175,6.36766799,250.44,250.41,2.68705965]
[1737805927375,3.9938,250.42,250.41,2.68705965]
[1737805927874,10.36146799,250.42,250.41,1.37095965]
[1737805929675,6.36766799,250.44,250.41,1.37095965]
[1737805929877,10.36136799,250.44,250.41,1.37095965]
[1737805930075,6.36766799,250.44,250.41,1.37095965]
[1737805930673,6.36766799,250.42,250.41,1.37095965]
[1737805931075,6.36766799,250.42,250.41,0.03065965]
[1737805934071,3.9938,250.43,250.41,0.03065965]
[1737805934875,6.36766799,250.42,250.41,0.03065965]
[1737805936679,6.36766799,250.42,250.34,2.6295]
[1737805936977,6.36766799,250.35,250.34,2.6295]
[1737805937779,6.36766799,250.35,250.34,1.263]
[1737805939180,10.36256799,250.35,250.34,1.263]
[1737805940983,10.36256799,250.35,250.33,1.2606]
[1737805941188,10.36256799,250.35,250.32,0.02591665]
[1737805941387,6.36766799,250.35,250.32,0.02591665]
[1737805941588,3.9952,250.34,250.32,0.02591665]
[1737805942782,3.9953,250.33,250.32,0.02591665]
[1737805971312,6.36766799,250.34,250.22,3.997]
[1737805971514,6.36766799,250.27,250.22,3.997]
[1737805972514,6.39370785,250.27,250.22,4.02660214]
[1737805974815,10.39000785,250.27,250.22,0.02960214]
[1737805975613,3.9964,250.26,250.22,0.02960214]
[1737805977819,3.9964,250.26,250.22,4.02660214]
[1737805979021,6.39370785,250.27,250.22,0.02960214]
[1737805979219,3.9964,250.26,250.22,0.02960214]
[1737805979916,0.02603986,250.27,250.22,0.02960214]
[1737805980113,0.02603986,250.27,250.25,6.36766799]
[1737805980316,8.0,250.32,250.25,6.36766799]
[1737805981421,0.02992119,250.31,250.25,6.36766799]
[1737805981822,0.02992119,250.31,250.29,3.9959]
[1737805982015,6.36766799,250.37,250.29,6.36766799]
[1737805982621,3.9949,250.36,250.3,3.9956]
[1737805982813,6.36766799,250.37,250.3,3.9956]
[1737805983213,6.36766799,250.37,250.31,0.02593874]
[1737805983822,3.9951,250.35,250.31,0.02593874]
[1737805984422,6.36766799,250.37,250.32,3.9953]
[1737805984724,6.36766799,250.39,250.31,6.39360673]
[1737805984921,6.36766799,250.39,250.31,6.36766799]
[1737805985216,6.36766799,250.39,250.32,0.02727221]
[1737805985418,6.36766799,250.46,250.38,6.36766799]
[1737805985823,6.36766799,250.46,250.39,0.02757215]
[1737805986024,6.36766799,250.46,250.41,3.994]
[1737805987621,6.36766799,250.42,250.39,0.02757215]
[1737805988627,6.36766799,250.4,250.39,0.02757215]
[1737805993027,3.9946,250.38,250.27,2.6307]
[1737805993229,6.36766799,250.33,250.27,2.6307]
[1737805993529,6.36766799,250.33,250.29,3.9959]
[1737805994131,0.02817826,250.34,250.29,3.9959]
[1737805994330,6.36766799,250.35,250.29,3.9959]
[1737805994529,0.02929584,250.34,250.29,4.02526531]
[1737805995130,0.02929584,250.34,250.3,6.36766799]
[1737805995431,0.02929584,250.34,250.32,6.36766799]
[1737805995928,0.02929584,250.34,250.33,3.9953]
[1737805996526,0.02929584,250.34,250.32,6.36766799]
[1737805996723,0.02929584,250.34,250.3,6.36766799]
[1737805998232,0.02929584,250.34,250.32,3.9954]
[1737805999136,0.02929584,250.34,250.3,6.36766799]
[1737805999334,0.02929584,250.34,250.33,3.9953]
[1737806002535,0.02929584,250.34,250.3,6.36766799]
[1737806002734,0.02929584,250.34,250.29,0.02936531]
[1737806004532,0.02929584,250.34,250.3,6.36766799]
[1737806005138,4.02439584,250.34,250.3,10.36336799]
[1737806006141,0.02929584,250.34,250.32,6.36766799]
[1737806006440,0.02929584,250.34,250.33,3.9953]
[1737806006636,0.02929584,250.34,250.32,6.36766799]
[1737806008139,0.02929584,250.34,250.32,10.36306799]
[1737806009730,0.02929584,250.34,250.3,6.36766799]
[1737806012242,0.02929584,250.34,250.32,3.9954]
[1737806012753,0.02929584,250.34,250.3,6.36766799]
[1737806014152,0.02929584,250.34,250.32,3.9954]
[1737806014752,0.02929584,250.34,250.33,3.9953]
[1737806016352,0.02929584,250.34,250.32,10.36306799]
[1737806016848,0.02929584,250.34,250.32,6.36766799]
[1737806017152,0.02929584,250.34,250.33,3.9953]
[1737806018053,0.02929584,250.34,250.3,6.36766799]
[1737806018855,4.02439584,250.34,250.29,4.02506531]
[1737806019153,4.02439584,250.34,250.29,0.02936531]
[1737806020051,4.02439584,250.34,250.3,3.9956]
[1737806020854,0.02929584,250.34,250.3,3.9956]
[1737806021357,0.02929584,250.34,250.3,10.36326799]
[1737806021655,0.02929584,250.34,250.3,6.36766799]
[1737806021955,0.02929584,250.34,250.31,3.9956]
[1737806023958,0.02929584,250.34,250.3,6.36766799]
[1737806024157,0.02929584,250.34,250.32,3.9954]
[1737806025953,0.02929584,250.34,250.32,10.36306799]
[1737806026659,0.02929584,250.34,250.32,6.36766799]
[1737806026854,0.02929584,250.34,250.33,3.9953]
[1737806027451,0.02929584,250.34,250.31,3.9955]
[1737806027762,0.02929584,250.34,250.3,6.36766799]
[1737806028057,0.02929584,250.34,250.33,3.9953]
[1737806033057,6.36766799,250.46,250.32,6.36766799]
[1737806033262,3.9938,250.43,250.37,6.36766799]
[1737806034063,3.9938,250.43,250.37,10.36216799]
[1737806034263,3.9938,250.43,250.37,10.38829436]
[1737806035765,10.36156799,250.42,250.37,4.02062637]
[1737806035964,10.36156799,250.42,250.37,0.02612637]
[1737806036361,3.9943,250.39,250.37,0.02612637]
[1737806036562,6.36766799,250.38,250.37,0.02612637]
[1737806040463,6.36766799,250.4,250.37,0.02612637]
[1737806040670,6.36766799,250.44,250.37,6.39379436]
[1737806041069,6.36766799,250.46,250.37,6.39379436]
[1737806041364,6.36766799,250.48,250.41,6.36766799]
[1737806041668,3.993,250.47,250.42,3.9938]
[1737806041868,3.993,250.47,250.42,0.02752933]
[1737806042468,3.9932,250.46,250.42,0.02752933]
[1737806042867,6.36766799,250.48,250.42,0.02752933]
[1737806043371,12.90136799,250.5,250.43,3.9936]
[1737806043666,6.36766799,250.54,250.47,6.36766799]
[1737806044166,1.2781,250.6,250.48,0.02684416]
[1737806044465,1.3366,250.62,250.57,6.36766799]
[1737806044870,6.36766799,250.61,250.55,6.36766799]
[1737806045073,6.36766799,250.61,250.57,0.02992956]
[1737806045273,6.36766799,250.59,250.57,0.02992956]
[1737806045767,10.35886799,250.59,250.57,0.02992956]
[1737806046770,3.9916,250.56,250.48,6.36766799]
[1737806046967,6.36766799,250.51,250.46,135.72108507]
[1737806047162,6.36766799,250.51,250.44,6.36766799]
[1737806047366,6.36766799,250.49,250.42,6.36766799]
[1737806047671,6.36766799,250.51,250.44,6.36766799]
[1737806047870,10.36016799,250.51,250.45,0.0291781]
[1737806048067,0.02620725,250.5,250.45,0.0291781]
[1737806048568,0.02620725,250.5,250.49,6.36766799]
[1737806049268,6.36766799,250.5,250.45,7.81e-05]
[1737806049468,6.36766799,250.47,250.45,7.81e-05]
[1737806049671,10.36076799,250.47,250.38,6.36766799]
[1737806049868,6.36766799,250.47,250.38,6.36766799]
[1737806050175,10.36086799,250.47,250.4,6.36766799]
[1737806050470,0.02868609,250.45,250.4,6.39352542]
[1737806051977,0.02868609,250.45,250.44,6.36766799]
[1737806052273,6.36766799,250.59,250.44,6.36766799]
[1737806052475,6.36766799,250.59,250.51,6.36766799]
[1737806052673,10.35886799,250.59,250.51,6.36766799]
[1737806053268,10.35886799,250.59,250.52,0.02707119]
[1737806053670,3.9912,250.59,250.52,0.02707119]
[1737806054075,1.3366,250.62,250.52,0.02707119]
[1737806054279,3.9913,250.58,250.52,0.02707119]
[1737806055175,1.3366,250.62,250.52,0.02707119]
[1737806055370,3.9915,250.57,250.52,0.02707119]
[1737806055772,3.9911,250.59,250.52,0.02707119]
[1737806055977,1.3366,250.62,250.52,0.02707119]
[1737806056276,3.9917,250.56,250.52,0.02707119]
[1737806056676,9.93973858,250.6,250.52,0.02707119]
[1737806057176,9.93973858,250.57,250.52,0.02707119]
[1737806058078,3.9919,250.54,250.52,0.02707119]
[1737806061081,3.9917,250.56,250.52,0.02707119]
[1737806061284,9.93973858,250.6,250.52,0.02707119]
[1737806062081,3.9915,250.57,250.52,0.02707119]
[1737806062576,9.93973858,250.6,250.52,0.02707119]
[1737806063281,3.9918,250.55,250.52,0.02707119]
[1737806063683,9.93973858,250.6,250.52,0.02707119]
[1737806064579,3.9918,250.55,250.52,0.02707119]
[1737806064881,9.93973858,250.6,250.52,0.02707119]
[1737806066480,3.992,250.54,250.52,0.02707119]
[1737806067783,9.93973858,250.6,250.52,0.02707119]
[1737806068081,3.9917,250.56,250.52,0.02707119]
[1737806068586,3.9919,250.54,250.52,0.02707119]
[1737806070087,125.97292881,250.5,250.48,3.9929]
[1737806071786,125.97292881,250.5,250.49,3.9927]
[1737806072284,129.96552881,250.5,250.46,0.02736387]
[1737806072489,125.97292881,250.5,250.46,0.02736387]
[1737806073987,5.237e-05,250.52,250.47,9.93973858]
[1737806074290,9.93973858,250.71,250.51,9.93973858]
[1737806074489,9.93973858,250.71,250.46,0.02736387]
[1737806074490,9.93973858,250.71,250.57,9.93973858]
[1737806074691,9.93973858,250.71,250.54,9.93973858]
[1737806075387,9.93973858,250.71,250.6,0.0271159]
[1737806075388,3.9905,250.64,250.6,0.0271159]
[1737806075589,9.93973858,250.71,250.6,0.0271159]
[1737806075891,3.9904,250.64,250.6,0.0271159]
[1737806077584,3.9907,250.62,250.6,0.0271159]
[1737806079087,3.9905,250.64,250.6,0.0271159]
[1737806082997,3.9905,250.63,250.6,0.0271159]
[1737806084392,3.9903,250.64,250.6,0.0271159]
[1737806084593,1.3328,250.67,250.6,0.0271159]
[1737806085493,3.9906,250.63,250.6,0.0271159]
[1737806086000,10.34940819,250.64,250.6,0.0271159]
[1737806087599,10.34930819,250.66,250.6,4.0180159]
[1737806087798,6.35910819,250.66,250.6,0.0271159]
[1737806089101,3.9902,250.65,250.6,0.0271159]
[1737806089695,6.35910819,250.66,250.6,0.0271159]
[1737806089901,3.9905,250.63,250.6,0.0271159]
[1737806090795,6.35910819,250.64,250.6,0.0271159]
[1737806092104,3.9908,250.62,250.6,0.0271159]
[1737806093505,3.9908,250.61,250.6,0.0271159]
[1737806095206,3.9906,250.63,250.6,0.0271159]
[1737806095907,6.35910819,250.68,250.6,6.38622409]
[1737806096208,6.35910819,250.68,250.59,6.35910819]
[1737806096507,3.9903,250.64,250.59,6.35910819]
[1737806097306,0.02945239,250.64,250.59,6.38488229]
[1737806097699,0.02945239,250.64,250.62,6.35910819]
[1737806098001,3.989,250.73,250.62,6.35910819]
[1737806098207,3.989,250.73,250.65,6.35910819]
[1737806098707,3.9895,250.7,250.65,6.35910819]
[1737806099206,6.35910819,250.72,250.65,6.38644441]
[1737806099506,3.9895,250.69,250.65,6.38644441]
[1737806100609,3.9893,250.71,250.65,6.38644441]
[1737806100807,3.9893,250.71,250.65,6.35910819]
[1737806101015,6.35910819,250.74,250.65,6.38711662]
[1737806101213,6.35910819,250.66,250.65,0.02800843]
[1737806101414,6.35910819,250.66,250.59,135.72108507]
[1737806101709,3.9903,250.64,250.63,0.03019544]
[1737806104220,10.34940819,250.64,250.63,0.03019544]
[1737806106923,10.34940819,250.64,250.63,9.544e-05]
[1737806107124,6.35910819,250.64,250.53,135.72108507]
[1737806107326,6.35910819,250.58,250.53,135.72108507]
[1737806107722,3.9918,250.55,250.53,135.72108507]
[1737806108724,3.9921,250.53,250.51,0.02540092]
[1737806110732,6.35910819,250.52,250.51,0.02540092]
[1737806110923,6.35910819,250.54,250.51,0.02540092]
[1737806111628,3.9918,250.55,250.51,0.02540092]
[1737806112128,6.35910819,250.52,250.51,0.02540092]
[1737806112331,10.35130819,250.52,250.51,0.02540092]
[1737806114227,3.9931,250.47,250.44,168.5560529]
[1737806114435,6.35910819,250.46,250.44,168.5560529]
[1737806115934,3.9934,250.45,250.44,168.5560529]
[1737806116131,3.9934,250.45,250.42,0.02670731]
[1737806117838,6.35910819,250.44,250.42,0.02670731]
[1737806118031,3.9937,250.43,250.42,0.02670731]
[1737806130940,6.35910819,250.44,250.42,0.02670731]
[1737806131138,6.35910819,250.46,250.42,0.02670731]
[1737806131940,3.9934,250.45,250.42,0.02670731]
[1737806132242,6.35910819,250.44,250.42,0.02670731]
[1737806133741,10.35280819,250.44,250.42,0.02670731]
[1737806134444,6.35910819,250.44,250.42,0.02670731]
[1737806137148,3.9937,250.43,250.42,0.02670731]
[1737806140445,3.9943,250.39,250.33,3.9951]
[1737806140646,6.35910819,250.37,250.33,3.9951]
[1737806141747,10.35370819,250.37,250.32,0.02910072]
[1737806142247,6.35910819,250.37,250.32,0.02910072]
[1737806142453,6.35910819,250.37,250.33,3.9953]
[1737806143046,6.35910819,250.37,250.32,0.02910072]
[1737806143743,6.35910819,250.37,250.34,3.9951]
[1737806144144,0.02923175,250.38,250.34,3.9951]
[1737806144547,4.02373175,250.38,250.33,3.9953]
[1737806144948,6.35910819,250.37,250.32,0.02910072]
[1737806145749,6.35910819,250.37,250.34,135.72108507]
[1737806145945,4.02383175,250.38,250.34,135.72108507]
[1737806146146,0.02923175,250.38,250.34,135.72108507]
[1737806147151,3.9946,250.37,250.34,135.72108507]
[1737806148351,0.02923175,250.38,250.34,135.72108507]
[1737806148652,0.02923175,250.38,250.35,135.72108507]
[1737806149251,0.02923175,250.38,250.37,6.35910819]
[1737806151755,3.9935,250.45,250.37,6.35910819]
[1737806152055,3.9935,250.45,250.39,6.35910819]
[1737806152353,3.9935,250.44,250.39,10.35340819]
[1737806153055,0.02588179,250.44,250.4,137.08198425]
[1737806153558,0.02588179,250.44,250.43,6.35910819]
[1737806155557,6.35910819,250.53,250.43,6.35910819]
[1737806155757,6.35910819,250.53,250.46,6.35910819]
[1737806156158,3.9923,250.52,250.46,6.35910819]
[1737806156454,6.35910819,250.49,250.42,143.44109244]
[1737806156652,6.35910819,250.49,250.46,0.02793101]
[1737806157557,10.35190819,250.49,250.46,0.02793101]
[1737806158455,10.35210819,250.47,250.46,0.02793101]
[1737806160556,6.35910819,250.49,250.46,0.02793101]
[1737806161954,6.35910819,250.51,250.46,0.02793101]
[1737806163759,10.35150819,250.51,250.46,0.02793101]
[1737806166154,3.9926,250.5,250.46,0.02793101]
[1737806167663,3.9929,250.48,250.46,0.02793101]
[1737806170157,6.35910819,250.49,250.46,0.02793101]
[1737806170661,3.9926,250.5,250.46,0.02793101]
[1737806170961,3.9928,250.49,250.46,0.02793101]
[1737806171657,0.02604307,250.52,250.46,6.3870392]
[1737806172354,0.02604307,250.52,250.48,3.9928]
[1737806172552,0.02604307,250.52,250.46,6.3870392]
[1737806172755,6.35910819,250.61,250.5,6.35910819]
[1737806173058,6.35910819,250.61,250.52,6.35910819]
[1737806173259,6.35910819,250.57,250.5,6.35910819]
[1737806173464,6.35910819,250.55,250.48,6.35910819]
[1737806173655,6.35910819,250.51,250.45,137.08198425]
[1737806173859,6.35910819,250.49,250.45,137.08198425]
[1737806174059,6.35910819,250.49,250.45,137.11121347]
[1737806174657,6.35910819,250.49,250.45,0.02922922]
[1737806175263,6.35910819,250.49,250.45,4.02242922]
[1737806177257,6.35910819,250.49,250.45,0.02922922]
[1737806177463,3.9931,250.47,250.45,0.02922922]
[1737806178068,6.35910819,250.47,250.45,0.02922922]
[1737806178269,3.9932,250.46,250.45,0.02922922]
[1737806183673,6.35910819,250.47,250.34,6.35910819]
[1737806183875,3.9942,250.4,250.34,6.35910819]
[1737806184174,3.9942,250.4,250.33,3.9953]
[1737806184577,6.35910819,250.41,250.35,3.9949]
[1737806184771,3.9939,250.42,250.36,6.35910819]
[1737806184977,0.02685529,250.41,250.36,6.35910819]
[1737806185180,0.02685529,250.41,250.35,4.02018934]
[1737806185374,6.38596348,250.41,250.35,0.02528934]
[1737806185571,3.9942,250.4,250.35,0.02528934]
[1737806186781,0.02685529,250.41,250.35,0.02528934]
[1737806187282,6.38596348,250.41,250.35,0.02528934]
[1737806187880,3.9945,250.38,250.35,0.02528934]
[1737806188378,6.35910819,250.39,250.35,0.02528934]
[1737806188582,3.9946,250.37,250.35,0.02528934]
[1737806189176,6.35910819,250.39,250.35,0.02528934]
[1737806189382,3.9948,250.36,250.35,0.02528934]
[1737806190280,6.35910819,250.37,250.27,137.08198425]
[1737806190483,6.35910819,250.29,250.27,137.08198425]
[1737806191280,10.35500819,250.29,250.27,137.08198425]
[1737806191483,6.35910819,250.29,250.25,0.03003586]
[1737806191685,6.35910819,250.26,250.25,0.03003586]
[1737806193784,3.9967,250.24,250.16,6.35910819]
[1737806193991,6.35910819,250.22,250.16,6.35910819]
[1737806194786,6.35910819,250.22,250.17,3.9978]
[1737806194987,6.38585273,250.22,250.17,3.9978]
[1737806195488,10.38285273,250.22,250.16,6.38554773]
[1737806196689,10.38285273,250.22,250.16,10.38354773]
[1737806197086,6.38585273,250.22,250.16,6.38554773]
[1737806197288,0.02674454,250.22,250.2,6.35910819]
[1737806197985,0.02674454,250.22,250.18,6.35910819]
[1737806199288,0.02674454,250.22,250.18,10.35670819]
[1737806200486,0.02674454,250.22,250.18,6.35910819]
[1737806200686,0.02674454,250.22,250.16,6.38554773]
[1737806201081,3.9972,250.21,250.16,6.38554773]
[1737806201481,3.9972,250.21,250.16,0.02643954]
[1737806201690,10.35630819,250.21,250.16,0.02643954]
[1737806202390,3.9974,250.2,250.16,0.02643954]
[1737806202890,3.9975,250.19,250.16,0.02643954]
[1737806203485,6.35910819,250.21,250.16,0.02643954]
[1737806203790,3.9977,250.18,250.16,0.02643954]
[1737806204085,6.35910819,250.19,250.16,0.02643954]
[1737806204990,3.9978,250.17,250.16,0.02643954]
[1737806205691,10.35690819,250.17,250.16,0.02643954]
[1737806206189,6.35910819,250.17,250.16,0.02643954]
[1737806207589,10.35690819,250.17,250.16,0.02643954]
[1737806208187,6.35910819,250.17,250.16,0.02643954]
[1737806208885,10.35690819,250.17,250.16,0.02643954]
[1737806212994,6.35910819,250.17,250.16,0.02643954]
[1737806213895,6.35910819,250.21,250.16,0.02643954]
[1737806214492,10.35640819,250.21,250.16,0.02643954]
[1737806215997,3.9973,250.2,250.16,0.02643954]
[1737806216293,6.35910819,250.17,250.16,0.02643954]
[1737806216502,10.35690819,250.17,250.16,0.02643954]
[1737806217791,6.35910819,250.19,250.16,0.02643954]
[1737806218201,6.35910819,250.21,250.16,0.02643954]
[1737806218392,6.35910819,250.21,250.17,3.9978]